[Event "FTX Road to Miami Prelims 2022"]
[Site "Online"]
[Date "2022.07.04"]
[Round "7.3"]
[White "Erigaisi Arjun"]
[Black "Wei, Yi"]
[Result "1/2-1/2"]
[ECO "B51"]
[WhiteElo "2689"]
[BlackElo "2727"]
[Annotator "ChessBase"]
[PlyCount "82"]
[EventDate "2022.07.10"]
[EventType "tourn"]
[EventCountry "NET"]
[SourceTitle "playchess.com"]
[Source "ChessBase"]
[SourceQuality "1"]
[TimeControl "40/5400+30:1800+30"]

1. e4 {[%emt 1:15:40]} c5 {[%emt 1:15:40]} 2. Nf3 {[%emt 0:00:23]} d6 {[%emt 0:00:22]} 3. Bb5+ {[%emt 0:00:22]} Nd7 {[%emt 0:00:21]} 4. Ba4 {[%emt 0:00:21]} Ngf6 {[%emt 0:00:22]} 5. O-O {[%emt 0:00:22]} a6 {[%emt 0:00:22]} 6. c4 {[%emt 0:00:22]} e6 {[%emt 0:00:34]} 7. Nc3 {[%emt 0:00:25]} Be7 {[%emt 0:00:43]} 8. d4 {[%emt 0:00:22]} cxd4 {[%emt 0:00:28]} 9. Nxd4 {[%emt 0:00:28]} O-O {[%emt 0:00:23]} 10. Qe2 {[%emt 0:00:21]} Qc7 {[%emt 0:00:50]} 11. Bg5 {[%emt 0:01:54]} h6 {[%emt 0:01:46]} 12. Be3 {[%emt 0:03:13]} Ne5 {[%emt 0:00:45]} 13. Bb3 {[%emt 0:00:23]} Neg4 {[%emt 0:00:39]} 14. Bd2 {[%emt 0:02:20]} d5 {[%emt 0:00:26]} 15. Nf3 {[%emt 0:00:21]} d4 {[%emt 0:03:49]} 16. e5 {[%emt 0:02:56]} dxc3 {[%emt 0:00:47]} 17. Bxc3 {[%emt 0:00:20]} Nh5 {[%emt 0:05:32]} 18. Nd4 {[%emt 0:03:24]} f5 {[%emt 0:00:31]} 19. h3 {[%emt 0:00:21]} Qxe5 {[%emt 0:01:33]} 20. hxg4 {[%emt 0:00:23]} Qxe2 {[%emt 0:00:22]} 21. Nxe2 {[%emt 0:00:20]} fxg4 {[%emt 0:00:21]} 22. Rad1 {[%emt 0:00:59]} Bc5 {[%emt 0:02:22]} 23. Bd4 {[%emt 0:02:23]} Bxd4 {[%emt 0:00:22]} 24. Rxd4 {[%emt 0:00:29]} e5 {[%emt 0:00:42]} 25. Rd5 {[%emt 0:00:48]} Be6 {[%emt 0:02:13]} 26. Rxe5 {[%emt 0:00:22]} Bf7 {[%emt 0:00:20]} 27. Rd1 {[%emt 0:02:19]} Rfe8 {[%emt 0:00:33]} 28. Rxe8+ {[%emt 0:00:22]} Rxe8 {[%emt 0:00:20]} 29. Kf1 {[%emt 0:00:22]} Nf6 {[%emt 0:00:32]} 30. Nc3 {[%emt 0:00:28]} Rc8 {[%emt 0:00:42]} 31. Rd4 {[%emt 0:00:31]} Kf8 {[%emt 0:00:25]} 32. Ne4 {[%emt 0:00:43]} Nxe4 {[%emt 0:00:40]} 33. Rxe4 {[%emt 0:00:20]} h5 {[%emt 0:00:33]} 34. Rd4 {[%emt 0:00:56]} b5 {[%emt 0:00:29]} 35. cxb5 {[%emt 0:00:26]} Bxb3 {[%emt 0:00:22]} 36. axb3 {[%emt 0:00:20]} axb5 {[%emt 0:00:21]} 37. Rd5 {[%emt 0:00:28]} Rc1+ {[%emt 0:00:51]} 38. Ke2 {[%emt 0:00:21]} Rc2+ {[%emt 0:00:22]} 39. Kf1 {[%emt 0:00:27]} Rc1+ {[%emt 0:00:27]} 40. Ke2 {[%emt 0:00:21]} Rc2+ {[%emt 0:00:21]} 41. Kf1 {[%emt 0:30:21]} Rc1+ {[%emt 0:30:21]} 1/2-1/2

[Event "FTX Road to Miami Prelims 2022"]
[Site "Online"]
[Date "2022.07.04"]
[Round "7.4"]
[White "Ju, Wenjun"]
[Black "Shankland, Sam"]
[Result "1-0"]
[ECO "D76"]
[WhiteElo "2560"]
[BlackElo "2720"]
[Annotator "ChessBase"]
[PlyCount "65"]
[EventDate "2022.07.10"]
[EventType "tourn"]
[EventCountry "NET"]
[SourceTitle "playchess.com"]
[Source "ChessBase"]
[SourceQuality "1"]
[TimeControl "40/5400+30:1800+30"]

1. d4 {[%emt 1:15:40]} Nf6 {[%emt 1:15:40]} 2. c4 {[%emt 0:00:22]} g6 {[%emt 0:00:21]} 3. Nf3 {[%emt 0:00:23]} Bg7 {[%emt 0:00:22]} 4. g3 {[%emt 0:00:21]} O-O {[%emt 0:00:21]} 5. Bg2 {[%emt 0:00:20]} d5 {[%emt 0:00:21]} 6. cxd5 {[%emt 0:00:31]} Nxd5 {[%emt 0:00:21]} 7. O-O {[%emt 0:00:20]} Nb6 {[%emt 0:00:21]} 8. Nc3 {[%emt 0:00:23]} Nc6 {[%emt 0:00:21]} 9. e3 {[%emt 0:00:20]} e5 {[%emt 0:00:21]} 10. d5 {[%emt 0:00:32]} e4 {[%emt 0:00:21]} 11. dxc6 {[%emt 0:00:57]} Qxd1 {[%emt 0:00:23]} 12. Nxd1 {[%emt 0:00:38]} exf3 {[%emt 0:00:23]} 13. Bxf3 {[%emt 0:00:21]} bxc6 {[%emt 0:00:35]} 14. Bd2 {[%emt 0:06:25]} Ba6 {[%emt 0:02:32]} 15. Bb4 {[%emt 0:00:55]} Rfd8 {[%emt 0:02:21]} 16. Re1 {[%emt 0:00:22]} Nc4 {[%emt 0:01:01]} 17. Be2 {[%emt 0:03:41]} Rab8 {[%emt 0:00:23]} 18. a3 {[%emt 0:01:44]} Bb5 {[%emt 0:01:13]} 19. a4 {[%emt 0:00:22]} Ba6 {[%emt 0:00:22]} 20. Bc3 {[%emt 0:00:33]} Bxc3 {[%emt 0:01:15]} 21. Nxc3 {[%emt 0:00:23]} Rxb2 {[%emt 0:00:44]} 22. Ne4 {[%emt 0:01:44]} Nd6 {[%emt 0:02:15]} 23. Nf6+ {[%emt 0:00:41]} Kg7 {[%emt 0:00:23]} 24. Bxa6 {[%emt 0:00:25]} Kxf6 {[%emt 0:00:21]} 25. Rac1 {[%emt 0:00:39]} c5 {[%emt 0:02:36]} 26. e4 {[%emt 0:00:52]} Re8 {[%emt 0:00:50]} 27. e5+ {[%emt 0:00:59]} Rxe5 {[%emt 0:00:22]} 28. Rxe5 {[%emt 0:00:20]} Kxe5 {[%emt 0:00:21]} 29. Rxc5+ {[%emt 0:00:20]} Kf6 {[%emt 0:01:01]} 30. Rxc7 {[%emt 0:00:29]} Ra2 {[%emt 0:02:55]} 31. Rd7 {[%emt 0:00:42]} Rxa4 {[%emt 0:01:52]} 32. Rxd6+ {[%emt 0:00:35]} Ke7 {[%emt 0:00:57]} 33. Rd7+ {[%emt 0:00:52]} 1-0

[Event "FTX Road to Miami Prelims 2022"]
[Site "Online"]
[Date "2022.07.04"]
[Round "7.5"]
[White "Giri, Anish"]
[Black "Wojtaszek, Radoslaw"]
[Result "1-0"]
[ECO "E11"]
[WhiteElo "2760"]
[BlackElo "2708"]
[Annotator "ChessBase"]
[PlyCount "77"]
[EventDate "2022.07.10"]
[EventType "tourn"]
[EventCountry "NET"]
[SourceTitle "playchess.com"]
[Source "ChessBase"]
[SourceQuality "1"]
[TimeControl "40/5400+30:1800+30"]

1. d4 {[%emt 1:15:40]} Nf6 {[%emt 1:15:40]} 2. c4 {[%emt 0:00:21]} e6 {[%emt 0:00:22]} 3. Nf3 {[%emt 0:00:21]} d5 {[%emt 0:00:22]} 4. g3 {[%emt 0:00:20]} Bb4+ {[%emt 0:00:26]} 5. Bd2 {[%emt 0:00:21]} Be7 {[%emt 0:00:22]} 6. Bg2 {[%emt 0:00:21]} Nbd7 {[%emt 0:00:22]} 7. O-O {[%emt 0:00:21]} O-O {[%emt 0:00:22]} 8. b4 {[%emt 0:00:21]} c6 {[%emt 0:00:38]} 9. Qb3 {[%emt 0:00:35]} Ne4 {[%emt 0:01:11]} 10. a4 {[%emt 0:00:21]} Nxd2 {[%emt 0:00:56]} 11. Nbxd2 {[%emt 0:00:25]} b6 {[%emt 0:00:22]} 12. Rfc1 {[%emt 0:01:06]} Bb7 {[%emt 0:01:18]} 13. a5 {[%emt 0:00:45]} Ba6 {[%emt 0:04:33]} 14. cxd5 {[%emt 0:04:28]} cxd5 {[%emt 0:00:25]} 15. b5 {[%emt 0:00:36]} Bc8 {[%emt 0:00:29]} 16. a6 {[%emt 0:00:59]} Nf6 {[%emt 0:00:43]} 17. Ne5 {[%emt 0:00:24]} Bd7 {[%emt 0:00:48]} 18. Nc6 {[%emt 0:03:08]} Bxc6 {[%emt 0:00:33]} 19. Rxc6 {[%emt 0:00:30]} Rc8 {[%emt 0:00:44]} 20. Rac1 {[%emt 0:00:23]} Rxc6 {[%emt 0:00:20]} 21. Rxc6 {[%emt 0:00:20]} Ne8 {[%emt 0:01:13]} 22. e3 {[%emt 0:03:53]} Nd6 {[%emt 0:00:24]} 23. Bf1 {[%emt 0:00:21]} Qd7 {[%emt 0:00:48]} 24. Nf3 {[%emt 0:00:21]} f6 {[%emt 0:01:25]} 25. Qc2 {[%emt 0:00:22]} Rc8 {[%emt 0:00:37]} 26. Bh3 {[%emt 0:01:06]} g6 {[%emt 0:03:29]} 27. e4 {[%emt 0:01:13]} dxe4 {[%emt 0:00:22]} 28. d5 {[%emt 0:01:38]} f5 {[%emt 0:02:14]} 29. Ne5 {[%emt 0:00:31]} Rxc6 {[%emt 0:00:42]} 30. dxc6 {[%emt 0:02:55]} Qc8 {[%emt 0:01:12]} 31. Qb3 {[%emt 0:00:32]} Bf6 {[%emt 0:00:55]} 32. Nd7 {[%emt 0:00:25]} Kf7 {[%emt 0:00:22]} 33. Bf1 {[%emt 0:00:36]} Ne8 {[%emt 0:00:51]} 34. Bc4 {[%emt 0:00:28]} Nc7 {[%emt 0:00:21]} 35. Qd1 {[%emt 0:00:33]} Ne8 {[%emt 0:01:26]} 36. Nxf6 {[%emt 0:00:43]} Kxf6 {[%emt 0:00:53]} 37. Qd7 {[%emt 0:00:23]} Qb8 {[%emt 0:00:34]} 38. Qxe6+ {[%emt 0:00:29]} Kg7 {[%emt 0:00:23]} 39. Qe7+ {[%emt 0:00:28]} 1-0

[Event "FTX Road to Miami Prelims 2022"]
[Site "Online"]
[Date "2022.07.04"]
[Round "7.6"]
[White "Xiong, Jeffery"]
[Black "Rapport, Richard"]
[Result "0-1"]
[ECO "B51"]
[WhiteElo "2691"]
[BlackElo "2764"]
[Annotator "ChessBase"]
[PlyCount "72"]
[EventDate "2022.07.10"]
[EventType "tourn"]
[EventCountry "NET"]
[SourceTitle "playchess.com"]
[Source "ChessBase"]
[SourceQuality "1"]
[TimeControl "40/5400+30:1800+30"]

1. e4 {[%emt 1:15:40]} c5 {[%emt 1:15:40]} 2. Nf3 {[%emt 0:00:22]} d6 {[%emt 0:00:22]} 3. Bb5+ {[%emt 0:00:23]} Nd7 {[%emt 0:00:29]} 4. d4 {[%emt 0:00:27]} cxd4 {[%emt 0:00:30]} 5. Nxd4 {[%emt 0:00:20]} g6 {[%emt 0:00:22]} 6. O-O {[%emt 0:00:24]} Bg7 {[%emt 0:00:25]} 7. Re1 {[%emt 0:00:44]} Ngf6 {[%emt 0:00:53]} 8. Bf1 {[%emt 0:02:26]} Nc5 {[%emt 0:00:25]} 9. f3 {[%emt 0:02:06]} Qb6 {[%emt 0:00:24]} 10. c3 {[%emt 0:00:35]} O-O {[%emt 0:02:00]} 11. Na3 {[%emt 0:00:28]} a6 {[%emt 0:00:37]} 12. Nc4 {[%emt 0:02:01]} Qc7 {[%emt 0:00:32]} 13. Ne3 {[%emt 0:02:06]} b5 {[%emt 0:00:50]} 14. b3 {[%emt 0:01:36]} Bb7 {[%emt 0:00:51]} 15. Ba3 {[%emt 0:00:22]} Rac8 {[%emt 0:00:36]} 16. Rc1 {[%emt 0:00:23]} Rfd8 {[%emt 0:00:30]} 17. Kh1 {[%emt 0:02:36]} e5 {[%emt 0:01:55]} 18. Nd5 {[%emt 0:02:14]} Bxd5 {[%emt 0:01:08]} 19. exd5 {[%emt 0:00:20]} exd4 {[%emt 0:00:21]} 20. cxd4 {[%emt 0:00:22]} Qa5 {[%emt 0:00:26]} 21. dxc5 {[%emt 0:00:29]} Qxa3 {[%emt 0:00:22]} 22. c6 {[%emt 0:00:20]} Qa5 {[%emt 0:02:02]} 23. g3 {[%emt 0:01:01]} Bh6 {[%emt 0:00:34]} 24. f4 {[%emt 0:00:33]} Re8 {[%emt 0:00:51]} 25. Rxe8+ {[%emt 0:00:54]} Rxe8 {[%emt 0:00:25]} 26. Bh3 {[%emt 0:00:42]} Re7 {[%emt 0:00:58]} 27. b4 {[%emt 0:00:57]} Qb6 {[%emt 0:00:41]} 28. Bg2 {[%emt 0:00:36]} Bg7 {[%emt 0:00:53]} 29. Bf3 {[%emt 0:00:22]} h5 {[%emt 0:00:27]} 30. Kg2 {[%emt 0:00:26]} Ne8 {[%emt 0:00:47]} 31. f5 {[%emt 0:00:36]} Qd4 {[%emt 0:00:59]} 32. fxg6 {[%emt 0:00:23]} fxg6 {[%emt 0:00:23]} 33. Qf1 {[%emt 0:00:46]} Qb2+ {[%emt 0:00:46]} 34. Kh3 {[%emt 0:00:22]} Rf7 {[%emt 0:00:33]} 35. Qe1 {[%emt 0:01:08]} Nc7 {[%emt 0:00:22]} 36. Be4 {[%emt 0:01:30]} Rf2 {[%emt 0:00:33]} 0-1

[Event "FTX Road to Miami Prelims 2022"]
[Site "Online"]
[Date "2022.07.04"]
[Round "7.8"]
[White "Sevian, Samuel"]
[Black "Aronian, Levon"]
[Result "1-0"]
[ECO "A29"]
[WhiteElo "2684"]
[BlackElo "2775"]
[Annotator "ChessBase"]
[PlyCount "109"]
[EventDate "2022.07.10"]
[EventType "tourn"]
[EventCountry "NET"]
[SourceTitle "playchess.com"]
[Source "ChessBase"]
[SourceQuality "1"]
[TimeControl "40/5400+30:1800+30"]

1. c4 {[%emt 1:15:40]} Nf6 {[%emt 1:15:40]} 2. Nc3 {[%emt 0:00:22]} e5 {[%emt 0:00:21]} 3. Nf3 {[%emt 0:00:22]} Nc6 {[%emt 0:00:21]} 4. g3 {[%emt 0:00:26]} d5 {[%emt 0:00:22]} 5. cxd5 {[%emt 0:00:21]} Nxd5 {[%emt 0:00:19]} 6. Bg2 {[%emt 0:00:21]} Bc5 {[%emt 0:00:21]} 7. O-O {[%emt 0:00:41]} O-O {[%emt 0:00:23]} 8. d3 {[%emt 0:00:21]} h6 {[%emt 0:00:27]} 9. Nxd5 {[%emt 0:00:23]} Qxd5 {[%emt 0:00:22]} 10. Bd2 {[%emt 0:00:23]} Re8 {[%emt 0:00:57]} 11. Bc3 {[%emt 0:01:02]} Qe6 {[%emt 0:00:48]} 12. Nd2 {[%emt 0:00:36]} a5 {[%emt 0:00:46]} 13. a4 {[%emt 0:03:55]} Qg6 {[%emt 0:01:47]} 14. Nc4 {[%emt 0:00:38]} Qh5 {[%emt 0:00:32]} 15. Qd2 {[%emt 0:03:21]} Bh3 {[%emt 0:02:01]} 16. Bxh3 {[%emt 0:01:19]} Qxh3 {[%emt 0:00:22]} 17. Nxa5 {[%emt 0:00:27]} Nxa5 {[%emt 0:00:43]} 18. Bxa5 {[%emt 0:00:22]} e4 {[%emt 0:00:21]} 19. dxe4 {[%emt 0:04:06]} Rxa5 {[%emt 0:02:30]} 20. Qxa5 {[%emt 0:00:41]} Re5 {[%emt 0:00:22]} 21. Qxc7 {[%emt 0:00:44]} Rh5 {[%emt 0:00:22]} 22. g4 {[%emt 0:00:35]} Qxg4+ {[%emt 0:00:24]} 23. Kh1 {[%emt 0:00:37]} Qxe4+ {[%emt 0:01:50]} 24. f3 {[%emt 0:00:22]} Qxe2 {[%emt 0:00:23]} 25. Rae1 {[%emt 0:00:46]} Qxb2 {[%emt 0:00:27]} 26. Qd8+ {[%emt 0:01:03]} Bf8 {[%emt 0:02:32]} 27. Qb8 {[%emt 0:00:23]} Kh7 {[%emt 0:00:38]} 28. Rb1 {[%emt 0:01:00]} Qa3 {[%emt 0:02:09]} 29. Qxb7 {[%emt 0:00:52]} Bd6 {[%emt 0:00:44]} 30. Rf2 {[%emt 0:00:45]} Rf5 {[%emt 0:02:03]} 31. Qb3 {[%emt 0:00:51]} Qc5 {[%emt 0:00:23]} 32. Qc2 {[%emt 0:00:26]} Qe5 {[%emt 0:02:31]} 33. Re2 {[%emt 0:00:25]} Qf4 {[%emt 0:02:23]} 34. Qe4 {[%emt 0:00:25]} Qxe4 {[%emt 0:00:20]} 35. fxe4 {[%emt 0:00:26]} Ra5 {[%emt 0:00:34]} 36. Ra2 {[%emt 0:00:21]} Ra6 {[%emt 0:00:32]} 37. a5 {[%emt 0:00:49]} Bc5 {[%emt 0:00:26]} 38. Rb5 {[%emt 0:00:33]} Bd4 {[%emt 0:00:22]} 39. Rd5 {[%emt 0:00:27]} Be3 {[%emt 0:00:25]} 40. Kg2 {[%emt 0:00:22]} g5 {[%emt 0:00:25]} 41. Kf3 {[%emt 0:30:24]} Bg1 {[%emt 0:30:33]} 42. e5 {[%emt 0:00:22]} Kg7 {[%emt 0:00:40]} 43. Rd6 {[%emt 0:00:25]} Ra7 {[%emt 0:00:21]} 44. a6 {[%emt 0:00:23]} Rc7 {[%emt 0:00:21]} 45. Rd3 {[%emt 0:00:24]} h5 {[%emt 0:00:33]} 46. h3 {[%emt 0:00:24]} Kg6 {[%emt 0:00:47]} 47. Ke4 {[%emt 0:00:23]} h4 {[%emt 0:00:44]} 48. Rd6+ {[%emt 0:00:28]} Kh5 {[%emt 0:00:22]} 49. Kf5 {[%emt 0:01:07]} Rc3 {[%emt 0:00:48]} 50. Kf6 {[%emt 0:00:27]} Rf3+ {[%emt 0:00:28]} 51. Kg7 {[%emt 0:00:23]} g4 {[%emt 0:00:31]} 52. hxg4+ {[%emt 0:01:05]} Kg5 {[%emt 0:00:31]} 53. a7 {[%emt 0:00:23]} Bxa7 {[%emt 0:00:22]} 54. Rxa7 {[%emt 0:00:20]} h3 {[%emt 0:00:32]} 55. Rxf7 {[%emt 0:00:21]} 1-0

[Event "FTX Road to Miami Prelims 2022"]
[Site "Online"]
[Date "2022.07.04"]
[Round "8.1"]
[White "Niemann, Hans Moke"]
[Black "Aronian, Levon"]
[Result "0-1"]
[ECO "D00"]
[WhiteElo "2688"]
[BlackElo "2775"]
[Annotator "ChessBase"]
[PlyCount "90"]
[EventDate "2022.07.10"]
[EventType "tourn"]
[EventCountry "NET"]
[SourceTitle "playchess.com"]
[Source "ChessBase"]
[SourceQuality "1"]
[TimeControl "40/5400+30:1800+30"]

1. d4 {[%emt 1:15:40]} d5 {[%emt 1:15:40]} 2. Nc3 {[%emt 0:00:26]} Bf5 {[%emt 0:00:24]} 3. Bf4 {[%emt 0:00:45]} e6 {[%emt 0:00:25]} 4. e3 {[%emt 0:00:22]} Bb4 {[%emt 0:00:36]} 5. Bd3 {[%emt 0:00:22]} Ne7 {[%emt 0:00:22]} 6. Nge2 {[%emt 0:00:30]} O-O {[%emt 0:00:38]} 7. a3 {[%emt 0:00:26]} Ba5 {[%emt 0:00:21]} 8. O-O {[%emt 0:00:28]} c6 {[%emt 0:00:33]} 9. e4 {[%emt 0:00:27]} Bg6 {[%emt 0:00:24]} 10. Bg3 {[%emt 0:02:09]} Nd7 {[%emt 0:00:45]} 11. Nf4 {[%emt 0:00:34]} Bxc3 {[%emt 0:01:00]} 12. Nxg6 {[%emt 0:00:23]} Nxg6 {[%emt 0:00:26]} 13. bxc3 {[%emt 0:00:25]} dxe4 {[%emt 0:00:21]} 14. Bc4 {[%emt 0:00:46]} Nb6 {[%emt 0:01:10]} 15. Bb3 {[%emt 0:00:23]} Nd5 {[%emt 0:00:23]} 16. Qe1 {[%emt 0:00:43]} f5 {[%emt 0:00:22]} 17. f3 {[%emt 0:00:44]} f4 {[%emt 0:00:22]} 18. fxe4 {[%emt 0:00:23]} fxg3 {[%emt 0:00:21]} 19. Rxf8+ {[%emt 0:00:40]} Qxf8 {[%emt 0:00:23]} 20. exd5 {[%emt 0:00:21]} gxh2+ {[%emt 0:00:21]} 21. Kxh2 {[%emt 0:00:22]} exd5 {[%emt 0:00:21]} 22. c4 {[%emt 0:00:57]} Re8 {[%emt 0:01:11]} 23. Qg3 {[%emt 0:00:25]} Qf5 {[%emt 0:00:22]} 24. cxd5 {[%emt 0:00:35]} cxd5 {[%emt 0:00:22]} 25. Qf3 {[%emt 0:01:53]} Qxf3 {[%emt 0:00:24]} 26. gxf3 {[%emt 0:00:20]} Nf4 {[%emt 0:00:21]} 27. Kg3 {[%emt 0:00:21]} g5 {[%emt 0:00:37]} 28. Kg4 {[%emt 0:00:38]} h6 {[%emt 0:00:22]} 29. c4 {[%emt 0:01:06]} Kg7 {[%emt 0:00:24]} 30. cxd5 {[%emt 0:00:38]} Kf6 {[%emt 0:00:21]} 31. Bc4 {[%emt 0:00:55]} Rc8 {[%emt 0:00:31]} 32. Bf1 {[%emt 0:00:28]} h5+ {[%emt 0:00:34]} 33. Kg3 {[%emt 0:00:22]} h4+ {[%emt 0:00:21]} 34. Kg4 {[%emt 0:00:33]} Nxd5 {[%emt 0:00:33]} 35. Bd3 {[%emt 0:00:27]} Ne3+ {[%emt 0:00:45]} 36. Kh3 {[%emt 0:00:29]} Rc3 {[%emt 0:00:22]} 37. Be4 {[%emt 0:00:26]} b5 {[%emt 0:00:21]} 38. Rb1 {[%emt 0:00:28]} Nc4 {[%emt 0:00:50]} 39. Bd5 {[%emt 0:01:08]} a6 {[%emt 0:00:45]} 40. a4 {[%emt 0:01:27]} Nb6 {[%emt 0:01:56]} 41. Bb7 {[%emt 0:30:35]} Nxa4 {[%emt 0:30:22]} 42. Kg4 {[%emt 0:00:23]} Rc4 {[%emt 0:00:38]} 43. Bxa6 {[%emt 0:00:34]} Rxd4+ {[%emt 0:00:26]} 44. Kh5 {[%emt 0:00:22]} h3 {[%emt 0:00:26]} 45. f4 {[%emt 0:00:42]} Rxf4 {[%emt 0:00:24]} 0-1

[Event "FTX Road to Miami Prelims 2022"]
[Site "Online"]
[Date "2022.07.04"]
[Round "8.3"]
[White "Rapport, Richard"]
[Black "Tari, Aryan"]
[Result "1-0"]
[ECO "A03"]
[WhiteElo "2764"]
[BlackElo "2672"]
[Annotator "ChessBase"]
[PlyCount "63"]
[EventDate "2022.07.10"]
[EventType "tourn"]
[EventCountry "NET"]
[SourceTitle "playchess.com"]
[Source "ChessBase"]
[SourceQuality "1"]
[TimeControl "40/5400+30:1800+30"]

1. f4 {[%emt 1:15:40]} d5 {[%emt 1:15:40]} 2. Nf3 {[%emt 0:00:38]} g6 {[%emt 0:00:26]} 3. c4 {[%emt 0:00:23]} c6 {[%emt 0:01:30]} 4. e3 {[%emt 0:00:22]} Bg7 {[%emt 0:00:26]} 5. Nc3 {[%emt 0:00:21]} Nf6 {[%emt 0:00:34]} 6. Be2 {[%emt 0:00:25]} O-O {[%emt 0:00:23]} 7. O-O {[%emt 0:00:21]} a5 {[%emt 0:01:18]} 8. d4 {[%emt 0:00:27]} dxc4 {[%emt 0:01:48]} 9. Bxc4 {[%emt 0:00:28]} b5 {[%emt 0:00:20]} 10. Bd3 {[%emt 0:00:25]} b4 {[%emt 0:00:21]} 11. Na4 {[%emt 0:00:31]} Nbd7 {[%emt 0:00:27]} 12. e4 {[%emt 0:00:28]} c5 {[%emt 0:01:46]} 13. e5 {[%emt 0:01:46]} Nd5 {[%emt 0:00:27]} 14. dxc5 {[%emt 0:01:20]} Bb7 {[%emt 0:00:31]} 15. Ng5 {[%emt 0:00:23]} Bc6 {[%emt 0:01:14]} 16. e6 {[%emt 0:00:51]} Bxa4 {[%emt 0:00:50]} 17. exf7+ {[%emt 0:00:31]} Kh8 {[%emt 0:00:21]} 18. Qxa4 {[%emt 0:00:42]} Nxc5 {[%emt 0:00:21]} 19. Qc2 {[%emt 0:01:05]} Rc8 {[%emt 0:03:03]} 20. Bc4 {[%emt 0:01:37]} Nb6 {[%emt 0:01:28]} 21. Rd1 {[%emt 0:00:50]} Qc7 {[%emt 0:01:06]} 22. Bb5 {[%emt 0:05:25]} e5 {[%emt 0:01:49]} 23. f5 {[%emt 0:00:47]} h6 {[%emt 0:00:24]} 24. fxg6 {[%emt 0:01:23]} hxg5 {[%emt 0:00:41]} 25. Qf5 {[%emt 0:00:23]} Bh6 {[%emt 0:01:08]} 26. Qf6+ {[%emt 0:00:25]} Bg7 {[%emt 0:00:21]} 27. Qxg5 {[%emt 0:00:50]} Rxf7 {[%emt 0:00:30]} 28. Qh5+ {[%emt 0:00:23]} Kg8 {[%emt 0:00:21]} 29. Qh7+ {[%emt 0:00:28]} Kf8 {[%emt 0:00:21]} 30. gxf7 {[%emt 0:00:22]} Ne6 {[%emt 0:00:23]} 31. Qg8+ {[%emt 0:00:29]} Ke7 {[%emt 0:00:25]} 32. Qe8+ {[%emt 0:00:22]} 1-0

[Event "FTX Road to Miami Prelims 2022"]
[Site "Online"]
[Date "2022.07.04"]
[Round "8.4"]
[White "Wojtaszek, Radoslaw"]
[Black "Xiong, Jeffery"]
[Result "1/2-1/2"]
[ECO "D78"]
[WhiteElo "2708"]
[BlackElo "2691"]
[Annotator "ChessBase"]
[PlyCount "85"]
[EventDate "2022.07.10"]
[EventType "tourn"]
[EventCountry "NET"]
[SourceTitle "playchess.com"]
[Source "ChessBase"]
[SourceQuality "1"]
[TimeControl "40/5400+30:1800+30"]

1. d4 {[%emt 1:15:40]} Nf6 {[%emt 1:15:40]} 2. c4 {[%emt 0:00:22]} g6 {[%emt 0:00:21]} 3. Nf3 {[%emt 0:00:23]} Bg7 {[%emt 0:00:22]} 4. g3 {[%emt 0:00:20]} c6 {[%emt 0:00:21]} 5. Bg2 {[%emt 0:00:23]} d5 {[%emt 0:00:21]} 6. Qb3 {[%emt 0:00:22]} O-O {[%emt 0:00:26]} 7. O-O {[%emt 0:00:22]} Qb6 {[%emt 0:00:45]} 8. Nc3 {[%emt 0:00:24]} Rd8 {[%emt 0:00:22]} 9. Na4 {[%emt 0:00:25]} Qxb3 {[%emt 0:01:04]} 10. axb3 {[%emt 0:00:20]} Na6 {[%emt 0:00:21]} 11. Bf4 {[%emt 0:00:30]} Bg4 {[%emt 0:00:41]} 12. Be5 {[%emt 0:01:47]} Ne4 {[%emt 0:01:10]} 13. Bxg7 {[%emt 0:00:34]} Kxg7 {[%emt 0:00:20]} 14. Rfd1 {[%emt 0:00:31]} Nb4 {[%emt 0:01:07]} 15. Nc3 {[%emt 0:00:36]} Bxf3 {[%emt 0:03:13]} 16. Bxf3 {[%emt 0:00:24]} Ng5 {[%emt 0:00:21]} 17. Bg2 {[%emt 0:01:07]} Ne6 {[%emt 0:02:02]} 18. e3 {[%emt 0:02:12]} Nc7 {[%emt 0:00:22]} 19. Ra4 {[%emt 0:00:50]} a5 {[%emt 0:00:23]} 20. Raa1 {[%emt 0:00:35]} e6 {[%emt 0:02:52]} 21. Kf1 {[%emt 0:00:33]} b5 {[%emt 0:01:07]} 22. cxb5 {[%emt 0:01:00]} cxb5 {[%emt 0:01:17]} 23. Bf3 {[%emt 0:00:30]} Rdb8 {[%emt 0:00:29]} 24. Be2 {[%emt 0:00:26]} Kf8 {[%emt 0:00:24]} 25. Rdc1 {[%emt 0:00:41]} Ke7 {[%emt 0:01:46]} 26. Ne4 {[%emt 0:01:40]} Ne8 {[%emt 0:00:23]} 27. Nc5 {[%emt 0:02:44]} Nd6 {[%emt 0:00:22]} 28. Nd3 {[%emt 0:01:32]} Nxd3 {[%emt 0:00:49]} 29. Bxd3 {[%emt 0:00:20]} Kd7 {[%emt 0:00:20]} 30. Rc5 {[%emt 0:00:29]} a4 {[%emt 0:01:03]} 31. bxa4 {[%emt 0:01:33]} bxa4 {[%emt 0:00:19]} 32. Ra2 {[%emt 0:00:40]} Rb4 {[%emt 0:00:29]} 33. Rc3 {[%emt 0:00:57]} Rab8 {[%emt 0:01:48]} 34. Rca3 {[%emt 0:00:35]} Rxb2 {[%emt 0:01:08]} 35. Rxa4 {[%emt 0:00:29]} Rxa2 {[%emt 0:00:27]} 36. Rxa2 {[%emt 0:00:22]} Rb7 {[%emt 0:00:29]} 37. h4 {[%emt 0:00:24]} Ke7 {[%emt 0:00:32]} 38. Ke2 {[%emt 0:00:22]} h5 {[%emt 0:00:27]} 39. Rc2 {[%emt 0:00:29]} Kd7 {[%emt 0:00:23]} 40. Ra2 {[%emt 0:00:21]} Ke7 {[%emt 0:00:21]} 41. Rc2 {[%emt 0:30:21]} Kd7 {[%emt 0:30:22]} 42. Ra2 {[%emt 0:00:21]} Ke7 {[%emt 0:00:21]} 43. Rc2 {[%emt 0:00:21]} 1/2-1/2